bitfinex/quotes_ETHUSD_20250720
["timestamp","ask_amount","ask_price","bid_price","bid_amount"]
[1752998315178,0.002,3671.8,3671.7,7.76454402]
[1752998316294,0.002,3671.8,3671.7,7.32274402]
[1752998316480,0.002,3671.8,3671.5,0.001]
[1752998316792,0.002,3671.8,3671.6,4.461]
[1752998317592,0.002,3671.8,3671.6,7.18455871]
[1752998317794,0.002,3671.8,3671.7,2.72353405]
[1752998319698,0.002,3671.8,3671.6,4.461]
[1752998320061,0.002,3671.8,3671.7,4.461]
[1752998321269,0.002,3671.8,3671.7,7.18453405]
[1752998321602,0.002,3671.8,3671.6,7.18459095]
[1752998322305,0.002,3671.8,3671.7,3.16533405]
[1752998322490,0.002,3671.8,3671.7,3.30133405]
[1752998323790,0.002,3671.8,3671.7,4.10446939]
[1752998324203,0.002,3671.8,3671.7,4.07723405]
[1752998327408,0.002,3671.8,3671.7,0.136]
[1752998327614,0.002,3671.8,3671.5,0.001]
[1752998327793,0.4421,3671.8,3671.6,4.459]
[1752998328400,0.4421,3671.8,3671.6,7.18260707]
[1752998328711,0.002,3671.8,3671.6,7.18260707]
[1752998329308,0.002,3671.8,3671.7,2.72353405]
[1752998330721,0.002,3671.8,3671.7,3.16533405]
[1752998331748,3.27353405,3671.7,3671.6,0.001]
[1752998331951,3.40953405,3671.7,3671.6,0.001]
[1752998332247,3.84963405,3671.7,3671.6,0.001]
[1752998332551,1.1261,3671.7,3671.6,0.001]
[1752998332726,2.85953405,3671.7,3671.6,0.001]
[1752998332922,0.5761,3671.7,3671.6,0.001]
[1752998333539,3.29963405,3671.7,3671.6,0.001]
[1752998334449,0.5761,3671.7,3671.6,0.001]
[1752998334610,0.136,3671.7,3671.6,0.001]
[1752998340058,0.136,3671.7,3671.6,2.72460823]
[1752998343857,0.136,3671.7,3671.6,0.001]
[1752998344065,0.136,3671.7,3671.6,2.72460823]
[1752998344559,0.136,3671.7,3671.6,0.001]
[1752998348943,3.73543405,3671.7,3671.6,0.001]
[1752998349143,3.76266066,3671.7,3671.6,0.001]
[1752998349637,4.07676066,3671.7,3671.6,0.001]
[1752998351886,4.33153176,3671.7,3671.6,0.001]
[1752998352248,4.07676066,3671.7,3671.6,0.001]
[1752998352567,4.33144358,3671.7,3671.6,0.001]
[1752998353572,4.07676066,3671.7,3671.6,0.001]
[1752998353776,3.27412759,3670.9,3670.8,0.001]
[1752998353951,14.14819189,3670.9,3670.8,0.001]
[1752998354145,10.15809189,3670.9,3670.8,0.001]
[1752998354577,10.36491363,3670.9,3670.8,0.001]
[1752998356087,10.61938662,3670.9,3670.8,0.001]
[1752998356386,10.36491363,3670.9,3670.8,0.001]
[1752998356696,14.81691363,3670.9,3670.8,0.001]
[1752998358985,14.81591363,3670.9,3670.8,0.001]
[1752998360055,6.79504933,3670.9,3670.8,0.001]
[1752998360255,11.70794933,3670.9,3670.8,0.001]
[1752998361291,41.70794933,3670.9,3670.8,0.001]
[1752998362654,11.70794933,3670.9,3670.8,0.001]
[1752998362855,11.70694933,3670.9,3670.8,0.001]
[1752998364271,7.37994933,3670.9,3670.8,0.001]
[1752998365196,0.20682174,3670.9,3670.8,0.001]
[1752998365394,2.7239848,3671.1,3670.8,0.001]
[1752998366088,4.449,3671.0,3670.8,0.7669]
[1752998366258,0.136,3670.9,3670.8,0.7669]
[1752998366458,4.585,3670.9,3670.8,0.7669]
[1752998366896,4.585,3670.9,3670.8,1.2124]
[1752998367094,4.585,3670.9,3670.8,0.001]
[1752998367797,4.61222661,3670.9,3670.8,0.001]
[1752998368013,7.3363542,3670.9,3670.8,0.001]
[1752998368197,7.30912759,3670.9,3670.8,0.001]
[1752998368857,8.03722759,3670.9,3670.8,0.001]
[1752998369059,8.49942759,3670.9,3670.8,0.001]
[1752998369719,8.03522759,3670.9,3670.8,0.001]
[1752998370005,8.49742759,3670.9,3670.8,0.001]
[1752998370205,11.49742759,3670.9,3670.8,0.001]
[1752998376205,11.03322759,3670.9,3670.8,0.001]
[1752998376373,11.49542759,3670.9,3670.8,0.001]
[1752998376922,2.72441076,3670.6,3669.9,2.45346234]
[1752998377226,4.445,3670.5,3670.0,2.97007806]
[1752998377531,4.444,3670.4,3670.0,0.24534623]
[1752998378189,4.444,3670.4,3670.0,2.97011962]
[1752998378438,4.444,3670.4,3670.1,2.72472058]
[1752998378898,0.136,3670.3,3670.1,2.72472058]
[1752998379099,0.136,3670.3,3670.2,3.18534715]
[1752998379318,4.58,3670.3,3670.2,0.4607]
[1752998379525,4.443,3670.3,3670.2,3.18534715]
[1752998379884,4.443,3670.4,3670.3,3.54597292]
[1752998380204,4.443,3670.4,3670.3,0.8214]
[1752998380586,0.136,3670.3,3670.1,0.8214]
[1752998382001,4.443,3670.2,3670.1,0.8214]
[1752998382422,4.443,3670.2,3669.6,0.4607]
[1752998382633,0.136,3670.1,3669.7,3.54641839]
[1752998382828,0.136,3670.1,3669.9,2.72485742]
[1752998382991,0.136,3670.1,3669.8,0.4607]
[1752998383325,0.136,3670.1,3669.9,3.18550741]
[1752998383842,0.136,3670.1,3670.0,2.72479564]
[1752998384002,0.136,3670.1,3670.0,3.18549564]
[1752998384211,4.442,3670.2,3670.0,4.01049564]
[1752998384419,4.442,3670.2,3670.1,3.18542139]
[1752998386201,0.136,3670.3,3670.2,3.52124715]
[1752998386401,0.136,3670.3,3670.2,3.98194715]
[1752998386603,0.136,3670.3,3670.2,1.2573]
[1752998387235,4.44,3670.6,3670.2,3.98194715]
[1752998387403,4.576,3670.6,3670.2,1.2573]
[1752998387803,4.576,3670.6,3670.2,0.7966]
[1752998388357,4.576,3670.6,3670.2,3.52123542]
[1752998388856,0.824,3670.5,3669.9,2.72485556]
[1752998389160,0.136,3670.3,3670.0,2.72477983]
[1752998389318,4.575,3670.3,3670.0,2.72477983]
[1752998389518,4.575,3670.3,3670.0,3.18547983]
[1752998390052,4.575,3670.3,3670.0,2.72477983]
[1752998391457,4.575,3670.3,3670.0,3.18547983]
[1752998391858,4.575,3670.3,3670.0,2.72477983]
[1752998392048,0.136,3670.3,3670.1,0.4607]
[1752998392553,0.136,3670.3,3670.0,2.72477983]
[1752998392733,0.136,3670.3,3670.0,3.18547983]
[1752998394250,0.136,3670.3,3670.0,0.4607]
[1752998394560,0.136,3670.3,3670.0,3.18547996]
[1752998395122,0.138,3670.3,3670.0,3.18547996]
[1752998395357,0.138,3670.3,3669.9,0.001]
[1752998395572,0.4622,3670.2,3669.9,0.001]
[1752998395722,0.136,3670.1,3669.9,0.001]
[1752998395925,0.136,3670.1,3669.9,2.7258678]
[1752998396158,0.136,3670.1,3669.9,0.001]
[1752998398962,0.5811,3670.1,3669.9,0.001]
[1752998399166,0.4451,3670.0,3669.9,0.001]
[1752998399469,0.136,3670.1,3669.9,0.001]
[1752998399972,0.136,3670.1,3669.9,3.17379954]
[1752998400143,0.136,3670.1,3670.0,3.17279564]
[1752998400483,0.002,3670.3,3670.2,2.72464715]
[1752998400629,0.002,3670.3,3670.2,3.92854715]
[1752998400954,0.002,3670.3,3670.2,4.06454715]
[1752998401679,0.002,3670.3,3670.2,8.49754715]
[1752998401845,0.002,3670.3,3670.2,9.97274557]
[1752998403959,0.002,3670.3,3670.2,5.53974557]
[1752998404264,0.002,3670.3,3670.2,8.49654715]
[1752998404873,0.002,3670.3,3670.2,8.49554715]
[1752998405581,0.002,3670.3,3670.2,3.61654715]
[1752998405785,0.002,3670.3,3670.2,8.49554715]
[1752998405998,1e-08,3670.3,3670.2,4.06454715]
[1752998406281,1e-08,3670.3,3670.2,9.21392442]
[1752998406443,1e-08,3670.3,3670.2,9.07792442]
[1752998411353,1e-08,3670.3,3670.2,9.07792442]
[1752998412079,1e-08,3670.3,3670.2,13.73792442]
[1752998412245,0.002,3671.0,3670.9,2.72412759]
[1752998412450,0.002,3671.0,3670.9,8.50366229]
[1752998412668,0.002,3671.0,3670.9,8.95166229]
[1752998416517,0.002,3671.0,3670.9,9.08766229]
[1752998427330,0.136,3671.9,3671.8,3.54565988]
[1752998427331,1e-08,3671.9,3671.8,3.54565988]
[1752998427626,1e-08,3671.9,3671.8,8.5915809]
[1752998427828,1e-08,3671.9,3671.8,9.0451809]
[1752998429319,0.002,3673.3,3672.5,2.72294077]
[1752998429550,0.002,3673.3,3672.5,7.13994077]
[1752998429551,0.4372,3672.7,3672.5,7.13994077]
[1752998429727,0.7819,3672.9,3672.5,7.13994077]
[1752998429934,0.4392,3672.6,3672.5,2.72294077]
[1752998430255,0.4392,3672.6,3672.5,7.13994077]
[1752998430818,0.4392,3672.6,3672.5,2.72294077]
[1752998431026,0.4392,3672.6,3672.5,7.13894077]
[1752998431234,0.4392,3672.6,3672.5,2.72294077]
[1752998431555,0.4392,3672.6,3672.5,7.13894077]
[1752998432263,0.4392,3672.6,3672.5,2.72294077]
[1752998432455,0.002,3672.6,3672.5,7.13894077]
[1752998433763,0.4392,3672.6,3672.5,7.13894077]
[1752998433924,0.002,3672.6,3672.5,7.13894077]
[1752998434623,0.002,3672.6,3672.5,7.83423105]
[1752998437332,0.4392,3672.6,3672.4,2.72295637]
[1752998437530,0.4392,3672.6,3672.5,2.72294077]
[1752998442785,0.002,3672.6,3672.5,2.75017017]
[1752998442948,0.002,3672.6,3672.5,3.33977017]
[1752998443150,0.002,3672.6,3672.5,7.77890098]
[1752998443361,0.002,3672.6,3672.5,7.75167158]
[1752998444396,0.002,3672.6,3672.5,8.56317158]
[1752998445975,0.002,3672.6,3672.5,9.51757158]
[1752998446675,0.002,3672.9,3672.8,2.72271836]
[1752998446879,0.002,3672.9,3672.8,12.83773825]
[1752998447079,0.002,3672.9,3672.8,13.29133825]
[1752998447901,0.002,3672.9,3672.8,12.02523825]
[1752998448580,0.002,3672.9,3672.8,9.02523825]
[1752998448900,0.002,3672.9,3672.8,7.26471836]
[1752998449107,0.002,3672.9,3672.8,2.85871836]
[1752998451594,0.002,3672.9,3672.8,7.26371836]
[1752998451795,0.002,3672.9,3672.8,2.85871836]
[1752998452302,0.4392,3672.9,3672.8,2.85871836]
[1752998452681,0.002,3672.9,3672.8,4.00118417]
[1752998453604,0.4392,3672.9,3672.8,2.72271836]
[1752998453802,0.8296,3672.8,3672.7,0.136]
[1752998454209,1.2668,3672.8,3672.7,0.136]
[1752998455013,0.4372,3672.8,3672.7,2.85879249]
[1752998456908,0.002,3672.9,3672.8,2.72271836]
[1752998457110,0.002,3672.9,3672.8,4.11156945]
[1752998457283,0.002,3672.9,3672.8,4.24756945]
[1752998457490,0.4392,3672.9,3672.6,0.136]
[1752998457688,0.4635,3672.8,3672.7,2.72273098]
[1752998460010,0.002,3672.9,3672.8,2.72271836]
[1752998463213,0.002,3672.9,3672.8,2.85871836]
[1752998463422,0.002,3672.9,3672.8,3.90197329]
[1752998463619,0.002,3672.9,3672.8,3.92920047]
[1752998463805,0.002,3672.9,3672.8,5.13807329]
[1752998464215,0.002,3672.9,3672.8,4.68697329]
[1752998464516,0.4655,3672.9,3672.8,0.136]
[1752998465290,0.4655,3672.9,3672.7,2.72275289]
[1752998465511,0.4635,3672.8,3672.6,7.2548567]
[1752998465713,0.002,3672.9,3672.7,2.72279098]
[1752998465916,0.002,3672.9,3672.6,7.25485262]
[1752998466322,0.4635,3672.8,3672.6,7.25485262]
[1752998466514,0.4635,3672.8,3672.7,2.72279249]
[1752998468197,0.002,3672.9,3672.8,2.72271836]
[1752998469027,0.4655,3672.9,3672.7,2.72277354]
[1752998469203,0.4635,3672.8,3672.6,0.136]
[1752998469412,0.4635,3672.8,3672.6,0.94231622]
[1752998469695,0.4635,3672.7,3672.6,0.136]
[1752998471907,0.4635,3672.7,3672.6,2.85886663]
[1752998472454,0.002,3672.9,3672.6,2.85886663]
[1752998472750,0.4655,3672.9,3672.6,2.85886663]
[1752998472958,0.4655,3672.9,3672.7,2.72278337]
[1752998473102,0.4655,3672.9,3672.6,0.136]
[1752998473298,0.002,3672.9,3672.6,0.136]
[1752998473505,0.4635,3672.8,3672.6,0.136]
[1752998474445,0.002,3672.9,3672.6,0.136]
[1752998474650,0.4635,3672.7,3672.6,0.136]
[1752998476821,3.54306663,3672.6,3672.5,0.001]
[1752998477021,3.67906663,3672.6,3672.5,0.001]
[1752998477225,4.14256663,3672.6,3672.5,0.001]
[1752998479661,1.4197,3672.6,3672.5,0.001]
[1752998480365,0.8222,3672.9,3672.5,0.001]
[1752998480568,0.8222,3672.9,3672.6,2.72286032]
[1752998480569,0.002,3672.9,3672.6,2.72286032]
[1752998480725,0.002,3672.9,3672.5,3.61064724]
[1752998480931,0.002,3672.9,3672.7,2.72273291]
[1752998481256,0.002,3672.9,3672.8,2.72271836]
[1752998481763,0.002,3672.9,3672.8,3.52651836]
[1752998481965,0.002,3672.9,3672.8,4.77949719]
[1752998482562,0.002,3672.9,3672.8,4.32839719]
[1752998483564,0.4655,3672.9,3672.5,0.001]
[1752998483777,3.32414527,3672.9,3672.5,0.001]
[1752998483946,2.72286663,3672.6,3672.5,0.001]
[1752998484341,2.72281339,3672.7,3672.5,0.001]
[1752998484559,0.4635,3672.6,3672.5,0.001]
[1752998485959,3.18636663,3672.6,3672.5,0.001]
[1752998486149,0.4635,3672.6,3672.5,0.001]
[1752998487049,4.387,3672.8,3672.5,0.001]
[1752998487245,0.138,3672.9,3672.5,0.001]
[1752998487568,4.385,3672.8,3672.6,2.85881432]
[1752998487769,0.002,3672.9,3672.6,3.41709516]
[1752998488081,0.4403,3672.9,3672.6,0.136]
[1752998488320,0.002,3672.9,3672.5,0.137]
[1752998488449,0.002,3672.9,3672.7,2.7227402]
[1752998488960,0.002,3672.9,3672.6,0.4525]
[1752998488961,0.002,3672.9,3672.8,2.72271836]
[1752998489775,0.002,3672.9,3672.8,3.54371836]
[1752998489957,0.002,3672.9,3672.8,4.22932679]
[1752998490152,0.002,3672.9,3672.8,4.36532679]
[1752998491270,0.002,3672.9,3672.8,4.81782679]
[1752998492161,5.6353,3672.9,3672.5,0.001]
[1752998492364,2.7227225,3672.8,3672.5,0.001]
[1752998492664,3.1610225,3672.8,3672.5,0.001]
[1752998492895,0.4383,3672.7,3672.5,0.001]
[1752998493411,0.4383,3672.6,3672.5,0.001]
[1752998494221,3.16116663,3672.6,3672.5,0.001]
[1752998494975,0.4383,3672.6,3672.5,0.001]
[1752998495171,0.002,3672.9,3672.5,0.001]
[1752998495681,3.16295931,3672.9,3672.5,0.001]
[1752998496204,0.4383,3672.8,3672.5,0.001]
[1752998496717,3.16102021,3672.8,3672.5,0.001]
[1752998496923,0.4383,3672.8,3672.5,0.001]
[1752998497222,0.7,3672.6,3672.5,0.001]
[1752998499327,0.7,3672.6,3672.5,2.72394077]
[1752998499877,0.7,3672.6,3672.5,3.79908347]
[1752998500121,0.002,3672.9,3672.8,2.72271836]
[1752998500788,0.002,3672.9,3672.8,3.95461836]
[1752998502130,0.002,3672.9,3672.8,3.63811836]
[1752998504717,0.002,3672.9,3672.8,4.09061836]
[1752998505033,0.002,3672.9,3672.8,8.2720306]
[1752998506726,0.002,3672.9,3672.8,11.3799949]
[1752998509614,0.002,3672.9,3672.8,8.2720306]
[1752998511807,0.002,3673.4,3673.2,2.72242186]
[1752998512009,0.002,3673.4,3673.2,7.89654607]
[1752998512310,0.002,3673.4,3673.2,9.83052404]
[1752998513249,0.002,3673.4,3673.2,12.83052404]
[1752998514931,1e-08,3673.4,3673.3,6.55194775]
[1752998515131,1e-08,3673.5,3673.4,2.72227364]
[1752998515454,1e-08,3673.5,3673.4,11.40059637]
[1752998515651,1e-08,3673.5,3673.4,13.8493347]
[1752998515875,1e-08,3673.6,3673.5,6.65976383]
[1752998516256,1e-08,3673.6,3673.5,7.11226383]
[1752998516459,1e-08,3673.6,3673.5,11.77226383]
[1752998517582,0.002,3673.7,3673.6,3.55172543]
[1752998517583,1e-08,3673.7,3673.6,3.55172543]
[1752998517876,1e-08,3673.7,3673.6,11.12793131]
[1752998518075,1e-08,3673.7,3673.6,15.89671006]
[1752998518453,1e-08,3673.7,3673.6,18.89671006]
[1752998520400,1e-08,3674.1,3674.0,2.72182906]
[1752998520544,1e-08,3674.1,3674.0,14.89698653]
[1752998520749,1e-08,3674.1,3674.0,15.48056824]
[1752998520994,0.002,3674.9,3674.1,5.72175498]
[1752998521195,0.002,3674.9,3674.3,6.55120683]
[1752998521561,0.002,3674.9,3674.3,7.16200683]
[1752998521872,0.002,3674.9,3674.3,8.98221693]
[1752998522265,0.002,3674.9,3674.7,9.60517488]
[1752998522460,0.002,3674.9,3674.7,13.97017488]
[1752998522688,0.002,3674.9,3674.7,14.58097488]
[1752998523389,0.002,3674.9,3674.7,14.44497488]
[1752998523592,0.002,3674.9,3674.8,5.72123652]
[1752998523752,0.002,3674.9,3674.8,5.74844888]
[1752998523951,0.002,3674.9,3674.8,6.22324888]
[1752998524252,1e-08,3674.9,3674.8,6.97193652]
[1752998527189,1e-08,3674.9,3674.8,11.33293652]
[1752998527480,1e-08,3674.9,3674.8,13.24803675]
[1752998530573,1e-08,3674.9,3674.8,8.88703675]
[1752998530811,1e-08,3674.9,3674.8,12.77123675]
[1752998532720,1e-08,3674.9,3674.8,12.77023675]
[1752998533529,1e-08,3674.9,3674.8,13.38103675]
[1752998534133,1e-08,3674.9,3674.8,18.04103675]
[1752998535803,1e-08,3674.9,3674.8,18.59103675]
[1752998537128,0.002,3675.7,3675.6,6.53934424]
[1752998537129,1e-08,3675.7,3675.6,6.53934424]
[1752998537339,1e-08,3675.7,3675.6,11.82135213]
[1752998537705,1e-08,3675.7,3675.6,11.95735213]
[1752998537908,1e-08,3675.7,3675.6,16.95615213]
[1752998539040,1e-08,3675.7,3675.6,16.48135213]
[1752998539449,1e-08,3675.7,3675.6,16.95615213]
[1752998539946,1e-08,3675.7,3675.6,18.76861643]
[1752998540137,1e-08,3675.7,3675.6,20.04571643]
[1752998545309,1e-08,3676.4,3676.3,5.72012621]
[1752998545514,1e-08,3676.4,3676.3,10.09832747]
[1752998545741,1e-08,3676.4,3676.3,10.07112621]
[1752998546155,0.45070001,3676.4,3676.3,10.07112621]
[1752998547183,0.45070001,3676.4,3676.3,5.72012621]
[1752998547330,0.45070001,3676.4,3676.3,10.07012621]
[1752998547844,0.45070001,3676.4,3676.3,10.20512621]
[1752998551133,1.22690001,3676.4,3676.3,7.20312621]
[1752998551836,0.45070001,3676.4,3676.2,4.347]
[1752998552059,0.7762,3676.3,3676.2,4.347]
[1752998552451,1.2401,3676.3,3676.2,4.347]
[1752998552663,1.2401,3676.3,3676.0,7.51634497]
[1752998552863,0.4639,3676.2,3676.1,4.346]
[1752998553063,0.4639,3676.2,3676.0,2.85632333]
[1752998553266,0.4639,3676.2,3676.1,7.0662742]
[1752998553596,0.4639,3676.2,3676.1,4.346]
[1752998555999,0.8219,3676.1,3676.0,0.136]
[1752998556205,0.8219,3676.1,3676.0,7.2013482]
[1752998556562,1.2858,3676.1,3676.0,7.2013482]
[1752998556980,1.2858,3676.1,3676.0,2.8563482]
[1752998557193,1.2858,3676.1,3676.0,7.2003482]
[1752998557405,1.2858,3676.1,3676.0,2.8563482]
[1752998557611,1.2858,3676.1,3676.0,4.48]
[1752998557773,1.2858,3676.1,3676.0,7.2003482]
[1752998559979,1.2858,3676.1,3676.0,0.136]
[1752998560185,1.2858,3676.1,3676.0,4.343]
[1752998560804,0.4639,3676.1,3675.9,4.343]
[1752998561007,0.8174,3676.0,3675.8,0.136]
[1752998561175,1.2813,3676.0,3675.9,4.343]
[1752998561377,0.8174,3676.0,3675.9,7.0634222]
[1752998562103,1.2813,3676.0,3675.9,7.0634222]
[1752998562304,1.2813,3676.0,3675.9,8.05541917]
[1752998562305,0.4639,3676.0,3675.9,8.05541917]
[1752998562509,0.13600001,3676.4,3676.3,2.72012621]
[1752998563011,1.41730001,3676.4,3676.3,2.72012621]
[1752998564703,1.28130001,3676.4,3676.3,2.72012621]
[1752998565325,1e-08,3676.4,3676.3,7.06112621]
[1752998565826,0.46390001,3676.4,3676.3,7.06112621]
[1752998567232,1e-08,3676.4,3676.3,7.64871656]
[1752998567391,0.46390001,3676.4,3676.3,7.64871656]
[1752998568725,1e-08,3676.4,3676.3,7.64871656]
[1752998574023,1e-08,3676.4,3676.3,7.64971656]
[1752998574843,1e-08,3676.4,3676.3,10.64971656]
[1752998575746,1e-08,3676.4,3676.3,11.10991656]
[1752998576661,1e-08,3676.4,3676.3,10.64971656]
[1752998578557,1e-08,3676.4,3676.3,15.30971656]
[1752998581343,1e-08,3676.4,3676.3,15.77251656]
[1752998582065,1e-08,3676.4,3676.3,15.30971656]
[1752998585458,1e-08,3676.4,3676.3,15.77251656]
[1752998586759,1e-08,3676.4,3676.3,15.30971656]
[1752998587155,1e-08,3676.4,3676.3,15.77251656]
[1752998587763,1e-08,3676.4,3676.3,15.30971656]
[1752998591542,1e-08,3676.4,3676.3,10.96871656]
[1752998591816,1e-08,3676.4,3676.3,15.29471656]
[1752998592051,0.55,3678.1,3676.4,0.8164]
[1752998592181,0.7983,3678.8,3678.7,2.71835159]
[1752998592600,1.80906666,3678.8,3678.2,4.325]
[1752998592806,3.13644076,3679.8,3678.3,0.02718647]
[1752998592807,1.18637632,3678.7,3678.3,0.02718647]
[1752998593006,1.18637632,3678.7,3677.3,3.1079643]
[1752998593007,0.7983,3678.5,3677.0,3.0]
[1752998593218,0.76300293,3678.4,3677.8,2.71899208]
[1752998593425,0.7983,3678.3,3677.6,2.71909862]
[1752998593619,0.7983,3678.1,3677.4,4.325]
[1752998593809,0.7983,3677.9,3677.4,4.325]
[1752998594007,0.4506,3677.8,3677.3,7.04337785]
[1752998594223,2.32057752,3677.7,3677.0,4.324]
[1752998594398,1.2613,3677.6,3677.3,2.71935954]
[1752998594598,0.8107,3677.5,3677.3,2.71935954]
[1752998594822,0.4506,3677.4,3677.3,2.71935954]
[1752998595716,0.4506,3677.6,3677.5,2.71923861]
[1752998595887,3.1079643,3679.1,3677.5,2.71923861]
[1752998595888,1.2613,3678.0,3677.7,2.71904524]
[1752998596087,1.2613,3678.0,3677.9,2.71894287]
[1752998596294,0.4506,3678.0,3677.9,2.71894287]
[1752998597127,0.8107,3677.9,3677.1,2.71953441]
[1752998597323,0.8107,3677.9,3677.8,2.7190168]
[1752998597830,1.2613,3677.9,3677.8,2.7190168]
[1752998598025,0.8107,3678.3,3678.1,2.71875775]
[1752998598227,0.8107,3678.3,3678.0,2.71886257]
[1752998598389,0.8107,3678.3,3677.3,2.71937259]
[1752998598585,0.4506,3678.2,3677.4,0.7746626]
[1752998598903,0.4506,3678.2,3678.0,2.71880002]
[1752998599631,0.4506,3678.2,3677.8,2.71900477]
[1752998599827,0.4506,3678.2,3678.1,2.71879503]
[1752998600127,0.4506,3678.2,3678.0,2.71885379]
[1752998600428,0.4506,3678.2,3677.8,2.71900829]
[1752998600625,0.4506,3678.2,3678.0,2.71879984]
[1752998600841,0.4506,3678.2,3676.9,0.7835]
[1752998600842,0.8107,3678.1,3676.9,0.7835]
[1752998601123,0.8107,3677.9,3677.5,2.71923825]
[1752998601324,0.8107,3677.7,3677.3,2.71931857]
[1752998601525,5.34882661,3677.8,3677.3,2.71931857]
[1752998601526,0.8107,3677.5,3677.3,2.71931857]
[1752998601730,0.8107,3677.5,3677.1,2.71952902]
[1752998602093,0.4506,3677.4,3677.1,2.71952902]
[1752998602293,0.4506,3677.4,3677.0,0.1352]
[1752998602294,0.8107,3677.2,3677.0,0.1352]
[1752998602493,0.8107,3677.2,3677.1,2.7195094]
[1752998603031,1.2613,3677.2,3677.1,2.7195094]
[1752998603405,1.2613,3677.2,3676.9,2.71963112]
[1752998603606,4.7706,3677.1,3676.3,0.02820126]
[1752998603828,4.9058,3677.1,3676.9,2.71960869]
[1752998604029,4.9058,3677.1,3676.5,0.1352]
[1752998604030,0.4506,3677.0,3676.5,2.85516299]
[1752998604214,0.4506,3677.0,3676.9,2.71968234]
[1752998604553,4.7696,3677.0,3676.9,2.71968234]
[1752998604722,0.4506,3677.0,3676.9,2.71968234]
[1752998604912,4.7696,3677.0,3676.9,2.71968234]
[1752998605106,0.8107,3677.2,3677.1,2.71953441]
[1752998605313,4.319,3677.5,3677.2,2.71946045]
[1752998605515,4.319,3677.5,3677.3,0.1352]
[1752998605715,0.4506,3677.7,3677.6,2.71916467]
[1752998605913,4.7696,3677.7,3677.6,2.71916467]
[1752998606135,2.71837881,3678.7,3677.4,2.71931255]
[1752998606136,0.4506,3678.3,3678.2,2.71872111]
[1752998606354,4.7696,3678.3,3678.2,2.71872111]
[1752998606656,5.5673,3678.3,3678.2,2.71872111]
[1752998608714,1.2483,3678.3,3678.2,2.71872111]
[1752998608920,0.1352,3678.4,3678.3,2.7186472]
[1752998609122,0.7977,3678.6,3678.5,2.71849938]
[1752998609323,5.5437,3678.6,3678.2,2.71871531]
[1752998609642,0.429,3678.5,3678.2,2.71871531]
[1752998609838,5.1147,3678.6,3678.0,0.1352]
[1752998610073,0.429,3678.4,3678.3,2.7186472]
[1752998610851,4.746,3678.4,3678.3,2.7186472]
[1752998611158,0.429,3678.4,3678.3,2.7186472]
[1752998611345,4.745,3678.4,3678.3,2.7186472]
[1752998611854,0.7977,3678.6,3678.5,2.71849938]
[1752998612220,5.1137,3678.6,3678.5,2.71849938]
[1752998612447,5.5427,3678.6,3678.5,2.71849938]
[1752998612643,5.56992661,3678.6,3678.1,2.71875309]
[1752998612844,0.1352,3678.4,3678.0,2.71886087]
[1752998613049,0.1352,3678.4,3677.8,0.1352]
[1752998613050,0.761,3678.2,3677.9,2.71893126]
[1752998613251,4.745,3678.1,3678.0,2.71886895]
[1752998618483,4.316,3678.1,3678.0,2.71886895]
[1752998618977,4.316,3678.1,3677.9,2.71893478]
[1752998618978,4.743,3678.1,3677.9,2.71893478]
[1752998619274,4.743,3678.1,3677.3,0.765]
[1752998619275,0.45622661,3678.0,3677.3,0.765]
[1752998619475,0.429,3678.0,3677.7,2.71903275]
[1752998619635,4.314,3678.1,3677.7,2.71903275]
[1752998619833,0.429,3678.0,3677.6,0.1352]
[1752998620054,0.429,3677.9,3677.6,0.1352]
[1752998620248,0.429,3677.8,3677.6,0.1352]
[1752998620474,4.313,3677.7,3677.6,0.1352]
[1752998620673,4.742,3677.7,3677.6,0.1352]
[1752998621481,4.76922661,3677.7,3676.9,3.0]
[1752998621781,0.429,3677.6,3677.3,0.1352]
[1752998622199,0.45622661,3677.5,3676.5,2.72097051]
[1752998622364,0.45622661,3677.5,3676.9,0.1352]
[1752998622365,7.03137348,3677.4,3676.9,0.1352]
[1752998622775,0.429,3677.3,3676.9,0.1352]
[1752998623009,0.429,3677.2,3676.9,0.1352]
[1752998623157,4.312,3677.1,3676.9,0.1352]
[1752998625781,4.311,3677.0,3676.9,0.1352]
[1752998626788,3.14848568,3677.2,3676.9,0.1352]
[1752998626976,4.311,3677.0,3676.9,0.1352]
[1752998629324,4.31,3677.0,3676.9,0.1352]
[1752998631205,4.739,3677.0,3676.9,0.1352]
[1752998631529,0.429,3677.0,3676.9,0.1352]
[1752998631740,4.309,3677.0,3676.9,0.1352]
[1752998631914,7.45760837,3677.0,3676.9,0.1352]
[1752998632598,2.71980545,3676.8,3676.5,0.001]
[1752998632798,4.309,3676.7,3676.5,0.001]
[1752998632998,7.45783405,3676.7,3676.5,0.001]
[1752998633300,3.14890425,3676.6,3676.5,0.001]
[1752998634138,0.429,3676.6,3676.5,0.001]
[1752998634433,3.92630425,3676.6,3676.5,0.001]
[1752998634731,8.23430425,3676.6,3676.5,0.001]
[1752998635099,7.45690425,3676.6,3676.5,0.001]
[1752998635736,7.59210425,3676.6,3676.5,0.001]
[1752998636098,8.14210425,3676.6,3676.5,0.001]
[1752998636515,8.91950425,3676.6,3676.5,0.001]
[1752998636720,7.15541652,3676.4,3676.3,0.001]
[1752998636914,11.46241652,3676.4,3676.3,0.001]
[1752998637114,11.89141652,3676.4,3676.3,0.001]
[1752998638412,8.78345222,3676.4,3676.3,0.001]
[1752998638940,4.61334248,3676.4,3676.3,0.001]